Cogmind - Beta 16.1 @@@ ROGUE MODE // 2026.04.30 @ 10:28:04 Player: Elxavo Result: Destroyed by D-53 Grenadier with Mini Grenade Launcher Performance ------------- Evolutions (0) 0 Regions Visited (4) 800 Robots Destroyed (18) 90 Value Destroyed (298) 298 Prototype IDs (23) 460 Alien Tech Used (0) 0 Bonus (300) 300 TOTAL SCORE: 1948 Bonus ------- Aligned with FarCom 300 Cogmind --------- Core Integrity 0/250 Matter 300/300 Energy 100/100 System Corruption 0% Temperature Cool (0) Movement Core (350) Ox6 Location -9/Mines Parts ------- > --- POWER (1) -------- (None) > --- PROPULSION (2) --- (None) > --- UTILITY (2) ------ Large Storage Unit > --- WEAPON (2) ------- (None) > --- INVENTORY (15) --- Ion Engine Light Ion Engine Light Nuclear Core Aluminum Leg Aluminum Leg Medium Matter Pod (100) Improved Terrain Scanner Targeting Computer ECM Suite Supersonic Drone Bay (1/1) Assault Rifle Light Assault Rifle Light Assault Rifle Light Cannon Mining Laser Peak State ------------ > --- POWER ------------ Light Ion Engine > --- PROPULSION ------- Light Treads Light Treads > --- UTILITY ---------- Large Storage Unit Seismic Detector > --- WEAPON ----------- EM Pulse Gun Medium Laser > --- INVENTORY -------- Ion Engine Light Ion Engine Light Nuclear Core Aluminum Leg Aluminum Leg Medium Matter Pod Improved Terrain Scanner Targeting Computer ECM Suite Supersonic Drone Bay Assault Rifle Light Assault Rifle Light Assault Rifle Light Cannon Mining Laser [Rating: 9] Favorites ----------- Power Light Ion Engine Engine Light Ion Engine Propulsion Light Treads Treads Light Treads Utility Seismic Detector Device Seismic Detector Storage Large Storage Unit Weapon Medium Laser Energy Gun Medium Laser Ballistic Gun Assault Rifle Build | -11 -10 -10 -10 -9 ------- Run | Yrd Mat Min Exi Min Slots Evolved . | . . . . . Power . | . . . . . Propulsion . | . . . . . Utility . | . . . . . Weapon . | . . . . . Parts Attached 11 | 7 2 2 . . Power 2 | 1 . 1 . . Engine 2 | 1 . 1 . . Core . | . . . . . Reactor . | . . . . . Propulsion 2 | 2 . . . . Treads 2 | 2 . . . . Leg . | . . . . . Wheel . | . . . . . Hover . | . . . . . Flight . | . . . . . Utility 3 | 2 1 . . . Device 1 | 1 . . . . Storage 2 | 1 1 . . . Processor . | . . . . . Hackware . | . . . . . Protection . | . . . . . Artifact . | . . . . . Weapon 4 | 2 1 1 . . Energy Gun 3 | 1 1 1 . . Energy Cannon . | . . . . . Ballistic Gun 1 | 1 . . . . Ballistic Cannon . | . . . . . Launcher . | . . . . . Special Weapon . | . . . . . Impact Weapon . | . . . . . Slashing Weapon . | . . . . . Piercing Weapon . | . . . . . Special Melee Weapon . | . . . . . Unidentified Prototypes . | . . . . . Parts Lost 7 | . . 1 . 6 Power 2 | . . 1 . 1 Propulsion 2 | . . . . 2 Utility 1 | . . . . 1 Weapon 2 | . . . . 2 Highest Loss Streak 6 | . . 1 . 6 To Critical Strikes . | . . . . . Average Backups 12 | 3 9 14 15 15 Power 2 | 1 2 3 3 3 Propulsion 1 | 1 2 2 2 2 Utility 3 | . 2 4 4 5 Weapon 4 | 1 2 5 5 5 Tool/Special . | . . . . . Unused Backups 15 | . . . 1 14 Power 4 | . . . 1 3 Propulsion 2 | . . . . 2 Utility 5 | . . . . 5 Weapon 4 | . . . . 4 Tool/Special . | . . . . . Average Slot Usage (%) 99 | . 100 100 100 99 Engine 14 | . 14 14 14 14 Treads 28 | . 28 28 28 28 Device 14 | . 14 14 14 14 Storage 14 | . 14 14 14 14 Energy Gun 23 | . 14 27 28 27 Ballistic Gun 4 | . 14 . . . Peak Build Rating 9 | 7 8 8 9 9 Average Rating 8 | 5 7 7 8 8 On Entrance 6 | . 7 8 8 9 Avg Prop Armor Cover (%) . | . . . . . Naked Turns . | . . . . . Heaviest Build 28 | 12 28 28 28 28 Greatest Support 40 | 40 40 40 40 40 Greatest Overweight (x) 7 | 3 . . . 7 Average Overweight (x) . | . . . . . Largest Inventory Capacity 15 | 8 15 15 15 15 Average Capacity 13 | 7 11 15 15 15 Most Carried 15 | 7 15 15 15 15 Average Carried 13 | 3 9 14 14 15 Final Capacity 15 | 8 15 15 15 15 Final Carried 15 | 7 15 15 15 15 Class Distribution -------------------- 100% | Mutant Dominant Class ---------------- Mutant | -10/Materials Mutant | -10/Mines Mutant | -10/Exiles Mutant | -9/Mines Resources | -11 -10 -10 -10 -9 ----------- Run | Yrd Mat Min Exi Min Matter Collected 513 | 291 190 32 . . Remotely . | . . . . . Salvage Created 487 | 94 231 99 . 63 Parts 37 | 6 22 3 . 6 Haulers Intercepted . | . . . . . Recyclers Shooed . | . . . . . Parts Field Recycled . | . . . . . Retrieved Matter . | . . . . . Parts Self-Destructed . | . . . . . Prevented . | . . . . . Parts Restored . | . . . . . Kills | -11 -10 -10 -10 -9 ------- Run | Yrd Mat Min Exi Min Combat Hostiles Destroyed 14 | . 8 2 . 4 Guns 12 | . 8 2 . 2 AOE 2 | . . . . 2 Classes Destroyed 7 | 2 4 . . 1 Worker 1 | . 1 . . . Tunneler 1 | 1 . . . . Recycler 1 | 1 . . . . Watcher 2 | . 2 . . . Swarmer 9 | . 6 . . 3 Grunt 4 | . 2 2 . . Assembled 1 | . . . . 1 Best Kill Streak 3 | 2 3 2 . 2 Combat Bots Only 2 | . 2 2 . 2 Max Kills in Single Turn 2 | 1 2 1 . 2 Gunslinging . | . . . . . Exploded 2 | . . . . 2 Melee . | . . . . . Uniques/NPCs Destroyed . | . . . . . Combat | -11 -10 -10 -10 -9 -------- Run | Yrd Mat Min Exi Min Hostile Shots Fired 77 | . 44 6 . 27 Missed 12 | . 7 . . 5 Hits 65 | . 37 6 . 22 Projectile 65 | . 37 6 . 22 AOE 9 | . . . . 9 Part Disruptions 1 | . . . . 1 Damage Taken 927 | . 332 82 . 513 Core 265 | . 62 57 . 146 Absorbed by Shields . | . . . . . Core Remaining (%) 100 | 100 . . . . Volleys Fired 48 | 7 29 5 . 7 Largest 2 | 2 2 2 . 2 Hottest 90 | 60 70 90 . 90 Shots Fired 96 | 14 58 10 . 14 Gun 96 | 14 58 10 . 14 Cannon . | . . . . . Launcher . | . . . . . Special . | . . . . . Kinetic 36 | 7 29 . . . Thermal 48 | 7 29 5 . 7 Explosive . | . . . . . Electromagnetic 12 | . . 5 . 7 Robot Hit Streak 7 | 3 5 7 . 4 Robot Miss Streak 4 | 3 4 1 . 4 Penetration Max . | . . . . . Secondary Targets . | . . . . . Shots Hit Robots 53 | 6 32 7 . 8 Core Hits 27 | 3 14 5 . 5 Critical Kills . | . . . . . Critical Parts Destroyed . | . . . . . Critical Strikes 2 | . 2 . . . Burn 2 | . 2 . . . Melee Attacks . | . . . . . Impact . | . . . . . Slashing . | . . . . . Piercing . | . . . . . Sneak Attacks . | . . . . . Combat Hostiles . | . . . . . Follow-up Attacks . | . . . . . Damage Inflicted 766 | 75 426 92 . 173 Guns 689 | 75 426 92 . 96 Cannons . | . . . . . Explosions 77 | . . . . 77 Melee . | . . . . . Ramming . | . . . . . Kinetic 201 | 21 180 . . . Thermal 477 | 54 246 50 . 127 Explosive . | . . . . . Electromagnetic 88 | . . 42 . 46 Impact . | . . . . . Slashing . | . . . . . Piercing . | . . . . . Highest Corruption . | . . . . . Average Corruption . | . . . . . Corruption Purged . | . . . . . Corruption Blocked . | . . . . . Overload Shots . | . . . . . Overflow Damage . | . . . . . Projectiles . | . . . . . Explosions . | . . . . . Melee . | . . . . . Knockbacks . | . . . . . Impact . | . . . . . Kinetic . | . . . . . Secondary . | . . . . . Self-Inflicted Damage 37 | . . . . 37 Shots 1 | . . . . 1 Rammed . | . . . . . Targets Rammed . | . . . . . Kicked . | . . . . . Crushed . | . . . . . Highest Temperature 168 | . 99 168 . 150 Average Temperature 51 | . 37 91 . 62 Received Heat Transfer 119 | . 51 48 . 20 Siege Activations . | . . . . . Martial Activations . | . . . . . Shielding Activations . | . . . . . Robots Disrupted . | . . . . . Combat Hostiles . | . . . . . Robots Corrupted . | . . . . . Combat Hostiles . | . . . . . Parts Fried . | . . . . . Impact Corruptions . | . . . . . Robots Melted . | . . . . . Combat Hostiles . | . . . . . Parts Melted 2 | . . 1 . 1 Heat Transferred 1335 | 125 864 148 . 198 Parts Sabotaged . | . . . . . Parts Stolen . | . . . . . Parts Stripped . | . . . . . Power Chain Reactions 1 | . . . . 1 Alert | -11 -10 -10 -10 -9 ------- Run | Yrd Mat Min Exi Min Maximum Alert Level . | . . . . . Low Security (%) 100 | 100 100 100 . 100 Level 1 . | . . . . . Level 2 . | . . . . . Level 3 . | . . . . . Level 4 . | . . . . . Level 5 . | . . . . . High Security . | . . . . . Max Security . | . . . . . Peak Influence 85 | 10 85 30 . 74 Initial 6 | . . 6 . . Average 13 | 1 23 3 . 7 Influence Increases 391 | 10 241 50 . 90 Destroy 0b10 Robot/C 260 | . 160 40 . 60 Destroy 0b10 Robot/NC 25 | 10 15 . . . Destroy Leader 54 | . 34 10 . 10 Successful Hack 17 | . 17 . . . Destroy Structure 5 | . . . . 5 Lose Combat Pursuer 30 | . 15 . . 15 Influence Decreases 391 | 10 223 68 . 90 Entered New Map 12 | . . 12 . . Time Decay 319 | 10 223 46 . 40 Lost Part 60 | . . 10 . 50 Squads Dispatched . | . . . . . Investigation . | . . . . . Extermination . | . . . . . Reinforcement . | . . . . . Assault . | . . . . . Garrison . | . . . . . Intercept . | . . . . . Searches Triggered . | . . . . . Construction Impeded . | . . . . . Haulers Reinforced . | . . . . . Active Scanning Responses . | . . . . . Cargo Convoy Interrupts . | . . . . . Stealth | -11 -10 -10 -10 -9 --------- Run | Yrd Mat Min Exi Min Distress Signals 1 | . 1 . . . Communications Jammed . | . . . . . Distress Signals . | . . . . . Times Spotted 26 | . 14 2 . 10 Peak Tracking Total 7 | . 3 2 . 7 Tactical Retreats 3 | . 1 . . 2 Traps | -11 -10 -10 -10 -9 ------- Run | Yrd Mat Min Exi Min Traps Triggered . | . . . . . Indirectly . | . . . . . Trap Hack Attempts . | . . . . . Triggered . | . . . . . Disarmed . | . . . . . Reprogrammed . | . . . . . Reused . | . . . . . Traps Extracted . | . . . . . Installed . | . . . . . Triggered . | . . . . . Machines | -11 -10 -10 -10 -9 ---------- Run | Yrd Mat Min Exi Min Machines Disabled . | . . . . . Max in Single Turn . | . . . . . Machines Repaired . | . . . . . Machines Dismantled . | . . . . . Machines Sabotaged . | . . . . . Overloaded Fab Kills . | . . . . . Hacking | -11 -10 -10 -10 -9 --------- Run | Yrd Mat Min Exi Min Machines Accessed 11 | . 6 . 5 . Terminals 5 | . 5 . . . Fabricators . | . . . . . Repair Stations . | . . . . . Recycling Units 1 | . 1 . . . Scanalyzers . | . . . . . Garrison Access . | . . . . . Total Hacks 69 | . 19 . 50 . Successful 61 | . 11 . 50 . Failed 8 | . 8 . . . Catastrophic . | . . . . . Database Lockouts . | . . . . . Manual 19 | . 16 . 3 . Terminals 18 | . 18 . . . Fabricators . | . . . . . Repair Stations . | . . . . . Recycling Units 1 | . 1 . . . Scanalyzers . | . . . . . Garrison Access . | . . . . . Terminal Hacks 51 | . 1 . 50 . Record 49 | . . . 49 . Zone Layout 1 | . 1 . . . Proto ID Catalog 1 | . . . 1 . Fabricator Hacks . | . . . . . Repair Station Hacks . | . . . . . Recycling Unit Hacks . | . . . . . Scanalyzer . | . . . . . Garrison Access Hacks . | . . . . . Unauthorized Hacks 10 | . 10 . . . Terminals 10 | . 10 . . . Botnet 5 | . 5 . . . Skim 5 | . 5 . . . Fabricators . | . . . . . Repair Stations . | . . . . . Recycling Units . | . . . . . Scanalyzers . | . . . . . Garrison Access . | . . . . . Data Cores Recovered . | . . . . . Used . | . . . . . Hacking Detections 6 | . 6 . . . Full Trace Events . | . . . . . Feedback Events . | . . . . . Feedback Blocked . | . . . . . Robot Schematics Acquired . | . . . . . Robots Built . | . . . . . Authchips . | . . . . . Time . | . . . . . Total Robot Build Rating . | . . . . . Part Schematics Acquired . | . . . . . Parts Built . | . . . . . Authchips . | . . . . . Time . | . . . . . Total Part Build Rating . | . . . . . Part Studies Acquired . | . . . . . Parts Repaired . | . . . . . Time . | . . . . . Parts Recycled . | . . . . . Recycled Matter . | . . . . . Retrieved Matter . | . . . . . Retrieved Components . | . . . . . Parts Scanalyzed . | . . . . . Part Schematics Acquired . | . . . . . Parts Damaged . | . . . . . Bothacking | -11 -10 -10 -10 -9 ------------ Run | Yrd Mat Min Exi Min Used RIF Installer . | . . . . . Robots Hacked . | . . . . . Non-combat . | . . . . . Combat . | . . . . . Robot Hacks Applied . | . . . . . Relay Couplers Released . | . . . . . Fabnet Peak Effective % . | . . . . . Robots Rewired . | . . . . . Allies Hacked . | . . . . . Hacks Repelled . | . . . . . Allies | -11 -10 -10 -10 -9 -------- Run | Yrd Mat Min Exi Min Total Allies 2 | . . 2 . . Largest Group 2 | . . 2 1 . Highest-Rated Group 50 | . . 50 31 . Highest-Rated Ally 31 | . . 31 31 . Total Orders . | . . . . . Ally Attacks . | . . . . . Total Damage . | . . . . . Kills . | . . . . . Allies Corrupted . | . . . . . Allies Melted . | . . . . . Intel | -11 -10 -10 -10 -9 ------- Run | Yrd Mat Min Exi Min Active Infowar (turns) 2921 | 35 850 404 927 705 Seismic 2921 | 35 850 404 927 705 Robot Analysis Total . | . . . . . Derelict Logs Recovered 1 | . . . . 1 Drone Launches . | . . . . . Drone Recoveries . | . . . . . Exploration | -11 -10 -10 -10 -9 ------------- Run | Yrd Mat Min Exi Min Turns Passed 3004 | 116 850 404 927 707 Spaces Moved 1429 | 54 405 220 579 171 Core 15 | 14 . . . 1 Treads 1414 | 40 405 220 579 170 Legs . | . . . . . Wheels . | . . . . . Hover . | . . . . . Flight . | . . . . . Fastest Speed 50 | 50 160 160 160 160 Average Speed 159 | 145 160 160 160 162 Slowest Speed 400 | 200 160 160 160 400 Overloaded Moves . | . . . . . Propulsion Burnouts . | . . . . . Robots Hopped . | . . . . . Potential Cave-ins . | . . . . . Cave-ins Triggered . | . . . . . Exploration Rate (%) 50 | 3 69 47 93 39 Regions Visited 4 Branch Regions 3 Pre-discovered Areas 2 | . . 1 1 . Known Exits Taken 2 | . 1 . 1 . Unknown Exits Taken 2 | 1 . 1 . . Scrap Searched 2 | . . 1 . 1 Spaces Dug . | . . . . . Terrain Destroyed 5 | . . . . 5 Melee . | . . . . . Projectile . | . . . . . AOE 5 | . . . . 5 Terrain Rammed . | . . . . . Walls Destroyed . | . . . . . Machines Disabled . | . . . . . Actions | -11 -10 -10 -10 -9 --------- Run | Yrd Mat Min Exi Min Total 2054 | 74 550 262 580 588 Wait 550 | . 105 35 . 410 Move 1425 | 53 404 219 578 171 Hop . | . . . . . Pick Up 17 | 7 8 1 1 . Fast Attach 7 | 7 . . . . Attach 1 | . . 1 . . Detach . | . . . . . Swap 3 | . 2 1 . . Drop 3 | . 2 . 1 . Fire 48 | 7 29 5 . 7 Melee . | . . . . . Ram . | . . . . . Kick . | . . . . . Crush . | . . . . . Escape Stasis . | . . . . . Rewire . | . . . . . Trap . | . . . . . Miscellaneous . | . . . . . Route ------- -11/Scrapyard -10/Materials (discovered 4 exits: [*Mat] / *Min x2 / Sub) -10/Mines -10/Exiles (discovered 2 exits: *Min x2) -9/Mines History --------- Turn | Location | Event 20 | -11/Scrapyard | Discovered new exit (range 16) 117 | -11/Scrapyard | Entered Materials 253 | -10/Materials | Discovered new exit (range 11) 308 | -10/Materials | Build established: Mutant 635 | -10/Materials | Learned Storage stockpile data 663 | -10/Materials | Learned 4 Recycling zone layouts 686 | -10/Materials | Identified exit to Mines 704 | -10/Materials | Identified exit to Subcaves 729 | -10/Materials | Learned location of 1 exit from Storage 819 | -10/Materials | Discovered new exit (range 16) 967 | -10/Materials | Entered Mines 977 | -10/Mines | Met a Derelict bent on vengeance 1087 | -10/Mines | Learned location of Storage (-7) 1365 | -10/Mines | Deemed a non-threat by the Exiles lab entrance 1365 | -10/Mines | Discovered new exit (range 5) 1371 | -10/Mines | Entered Exiles 1371 | -10/Exiles | Accompanied by 1 ally 1372 | -10/Exiles | Identified exit to Mines 1401 | -10/Exiles | Led the pair of lost Derelicts to a safe place 1416 | -10/Exiles | Met 8R-AWN 1442 | -10/Exiles | Met EX-HEX 1509 | -10/Exiles | Met EX-BIN 1531 | -10/Exiles | Aligned with FarCom system 1533 | -10/Exiles | Given EX-Vault access code 1602 | -10/Exiles | Opened EX-Vault 1644 | -10/Exiles | Found Supersonic Drone Bay 1675 | -10/Exiles | Warned to stay clear of 0b10 Research branches 1749 | -10/Exiles | Learned location of Zion (-7) 1751 | -10/Exiles | Met EX-DEC 2044 | -10/Exiles | Visited The Gauntlet 2298 | -10/Exiles | Left Exiles lab with Supersonic Drone Bay 2298 | -10/Exiles | Entered Mines 2773 | -9/Mines | Learned Materials garrison access intel 2907 | -9/Mines | Core integrity fell below 50% 2975 | -9/Mines | Assembled infested the area 3002 | -9/Mines | Core integrity fell below 20% 3005 | -9/Mines | Destroyed by D-53 Grenadier with Mini Grenade Launcher Last Messages --------------- 02947_ U-05 Engineer lays Concrete. 02951_ Flight Unit melted. 02951_ S-10 Pest destroyed. 02951_ U-05 Engineer lays Concrete. 02956_ U-05 Engineer builds a Wall. 02964_ U-05 Engineer lays Concrete. 02965_ U-05 Engineer builds a Wall. 02972_ R-06 Scavenger collects Corrupted Flight Unit. 02974_ U-05 Engineer lays Concrete. 02975_ ALERT: Infestation in the mines, dispatching Demolisher response squad. 02988_ R-06 Scavenger destroyed. 02995_ as-09991 destroyed. 02998_ C-45 Heavy ARC bursts open, deploying its payload. 02998_ D-53 Grenadier unfolds itself. 02998_ Med. Laser destroyed. 02999_ EM Pulse Gun destroyed. 03001_ Lgt. Treads destroyed. 03003_ Lgt. Ion Engine destroyed. 03003_ Seismic Detector destroyed. Map ----- +----------------------------------------------------+ | ?????????????????????????????????????????????????? | | ?????????????????????????????????????????????????? | | ?????????????????????????????????????????????????? | | ?????????????????????????????????????????????????? | | ?????????????????????????????????????????????????? | | ?????????????????????????????????????????????????? | | ?????????????????????????????????????????????????? | | ?????????????????????????????????????????????????? | | ?????????????????????????????????????????????????? | | ?????????????????????????????????????????????????? | | ?????????????????????????????????????????????????? | | ?????????????????????????????????????????????????? | | ?????????????????????????????????????????????????? | | ?????????????????????????????????????????????????? | | ?????????????????????????????????????????????????? | | ??????????????????????####???????????????????????? | | ?????????????????????## ##??????#???????????????? | | ????????????????????## u????? ##??????????????? | | ???????????????????## d%#????# ##?????????????? | | ?????????????????### d##### #?????????????? | | ????????????????## #?????????????? | | ???????????????## #?????????????? | | ???????????##### ##????????????? | | ???????????# ## ??????????? | | ???????????# #?????????? | | ???????????????# @ #?????????? | | ????????????????# #??????????? | | ???????????????## ## #??????????? | | ??????????????## #???? ?????????? | | ??????????????# % ##???????? ?????????? | | ??????????????# # #???????????????????? | | ?????????????## ### #??????????????????? | | ????????????## ##?#### #??????????????????? | | =?????????## #?????# #??????????????????? | | ###### #??????# ##??????????????????? | | = ##???????####???????????????????? | | [%= ##???????????????????????????????? | | ####### #????????????????????????????????? | | ??????????# ##?????######????????????????????? | | ??????????## #??#### ##???????????????????? | | ???????????# #?## #???????????????????? | | ???????????# # ### #???????????????????? | | ???????????# # ##??????????????????? | | ???????????# ###### #??????????????????? | | ???????????# #????## # # #????????###???????? | | ???????????# #?????#### ## ##??????## ##??????? | | ???????????# #????????# #####??????## #####??? | | ???????????# #????????# ###???????## ##?? | | ???????????# #???????## ##?????## #?? | | ???????????#%=###?????# ####### #?? | +----------------------------------------------------+ Best States ------------- Heat Dissipation 25 Energy Generation 10 Energy Capacity 125 Matter Stores 300 Matter Capacity 300 Sight Range 16 Terrain Scan Density 10 Evasion (%) 40 Recoil Reduction 2 Item Schematics ----------------- None Robot Schematics ------------------ None Fabricated ------------ Nothing Repaired ---------- Nothing Studied --------- None Alien Tech Used ----------------- None Achievements -------------- None Challenges ------------ None Game ------ Seed MomentumDecoderWarhead Manual? 0 Play Time 00:34:07 Cumulative 94.5 hours Start 2026.04.30 @ 09:35:54 End 2026.04.30 @ 10:28:04 Sessions 1 Manual Loads 0 Difficulty Rogue Special Mode None Game No. 114 Rogue 114 Adventurer 0 Explorer 0 Win Type - Total 0 Types 0/0/0/0/0/0/0/0/0/0 Lore% 41 Gallery% 27 Achievement% 23 Wizard Run 0 Options --------- Layout 0 ASCII 0 Keyboard 0 Movement Mouse Keybinds 0 Fullscreen 1 Font 18/SmallcapsGlow Map View 76x50 Zoom Use 0% Tactical HUD 1 Map Filters NONE Filters LOW_CONTRAST(13,24,33) Steam 1 RUN: 9e69c802-18d5-4960-9d89-237a4012ae8e